Cogmind - Beta 15 @@@ ROGUE MODE // 2025.09.13 @ 08:57:27 Player: beans Result: Destroyed by S-10 Pest with Light Assault Rifle Performance ------------- Evolutions (2) 1000 Regions Visited (6) 1200 Robots Destroyed (72) 360 Value Destroyed (1464) 1464 Prototype IDs (2) 40 Alien Tech Used (0) 0 Bonus (0) 0 TOTAL SCORE: 4064 Bonus ------- None Cogmind --------- Core Integrity 0/550 Matter 300/300 Energy 89/100 System Corruption 0% Temperature Cool (0) Movement Core (50) Location -8/Materials Parts ------- > --- POWER (1) -------- (None) > --- PROPULSION (3) --- (None) > --- UTILITY (4) ------ Improved Heat Sink Improved Signal Interpreter Hacking Suite > --- WEAPON (3) ------- (None) > --- INVENTORY (5) ---- Flight Unit High-capacity Storage Unit Compact Matter Pod (99) Hacking Suite Peak State ------------ > --- POWER ------------ Improved Ion Engine > --- PROPULSION ------- Improved Aluminum Leg Improved Flight Unit > --- UTILITY ---------- Targeting Computer Hacking Suite Hacking Suite > --- WEAPON ----------- Makeshift Shrapnel Gun Rocket Launcher > --- INVENTORY -------- High-capacity Storage Unit Compact Matter Pod Plasma Cutter [Rating: 20] Favorites ----------- Power Nuclear Core Engine Improved Ion Engine Power Core Nuclear Core Propulsion Light Treads Treads Light Treads Leg Improved Aluminum Leg Wheel Wheel Flight Unit Improved Flight Unit Utility Particle Charger Device Particle Charger Storage High-capacity Storage Unit Processor Targeting Computer Hackware Hacking Suite Protection Propulsion Shielding Weapon Beam Cannon Energy Gun Improved Medium Laser Energy Cannon Beam Cannon Ballistic Gun Assault Rifle Ballistic Cannon Light Cannon Launcher Rocket Launcher Special Weapon Plasma Cutter Slashing Weapon Katana Build | -11 -10 -9 -9 -9 -8 -8 ------- Run | Yrd Mat Mat Min Exi Min Mat Slots Evolved 4 | . . 2 . . . 2 Power . | . . . . . . . Propulsion 1 | . . . . . . 1 Utility 2 | . . 1 . . . 1 Weapon 1 | . . 1 . . . . Parts Attached 42 | 4 5 21 1 . 1 10 Power 4 | . . 2 . . 1 1 Engine 2 | . . . . . 1 1 Core 2 | . . 2 . . . . Reactor . | . . . . . . . Propulsion 9 | 2 . 5 . . . 2 Treads 6 | 2 . 3 . . . 1 Leg 1 | . . . . . . 1 Wheel 1 | . . 1 . . . . Hover . | . . . . . . . Flight 1 | . . 1 . . . . Utility 11 | . 1 5 . . . 5 Device 5 | . . 4 . . . 1 Storage 1 | . . 1 . . . . Processor 2 | . . . . . . 2 Hackware 2 | . . . . . . 2 Protection 1 | . 1 . . . . . Artifact . | . . . . . . . Weapon 18 | 2 4 9 1 . . 2 Energy Gun 7 | . . 7 . . . . Energy Cannon 2 | . 2 . . . . . Ballistic Gun 4 | 2 1 . 1 . . . Ballistic Cannon 1 | . 1 . . . . . Launcher 2 | . . 2 . . . . Special Weapon 1 | . . . . . . 1 Impact Weapon . | . . . . . . . Slashing Weapon 1 | . . . . . . 1 Piercing Weapon . | . . . . . . . Special Melee Weapon . | . . . . . . . Unidentified Prototypes 2 | . . 2 . . . . Parts Lost 28 | . 4 14 . . . 10 Power 4 | . . 2 . . . 2 Propulsion 6 | . 2 2 . . . 2 Utility 7 | . . 5 . . . 2 Weapon 11 | . 2 5 . . . 4 Highest Loss Streak 5 | . 4 5 . . . 5 To Critical Strikes . | . . . . . . . Average Backups 3 | . 2 4 3 5 5 3 Power . | . . . . . . . Propulsion . | . . . . . . . Utility 1 | . . 1 2 3 3 2 Weapon 1 | . 1 2 . 1 1 . Tool/Special . | . . . . . . . Unused Backups 3 | . . 2 . . . 1 Power . | . . . . . . . Propulsion . | . . . . . . . Utility 2 | . . 1 . . . 1 Weapon 1 | . . 1 . . . . Tool/Special . | . . . . . . . Average Slot Usage (%) 48 | . 61 51 37 22 23 48 Core 2 | . . 5 . . . . Treads 5 | . 21 4 . . . 3 Flight 3 | . . 2 11 11 11 3 Device 4 | . . 7 . . . 3 Storage 2 | . . 4 4 . . . Hackware 1 | . . . . . . 12 Protection 3 | . 12 2 . . . . Energy Gun 8 | . . 13 10 . . . Energy Cannon 5 | . 6 8 . . . . Ballistic Gun 4 | . 18 1 . 11 11 4 Launcher 2 | . . 2 10 . . 1 Peak Build Rating 20 | 4 5 15 10 8 10 20 Average Rating 8 | 3 4 9 8 8 8 13 On Entrance 6 | . 4 3 9 8 8 10 Naked Turns . | . . . . . . . Heaviest Build 53 | 3 7 53 47 2 9 13 Greatest Support 40 | 40 40 40 5 5 5 20 Greatest Overweight (x) 17 | . 2 17 9 . 1 2 Average Overweight (x) 1 | . . 2 1 . . . Largest Inventory Capacity 20 | 5 5 20 20 5 5 5 Average Capacity 8 | 5 5 10 10 5 5 5 Most Carried 6 | 2 5 6 5 5 5 5 Average Carried 3 | . 2 4 3 5 5 3 Final Capacity 20 | 5 5 20 5 5 5 5 Final Carried 5 | . 5 3 5 5 5 4 Class Distribution -------------------- 66% | Mutant 22% | Gunner 4% | Hacker-Mutant 3% | Tank Dominant Class ---------------- Mutant | -10/Materials Mutant | -9/Materials Mutant | -9/Mines Mutant | -9/Exiles Mutant | -8/Mines Hacker-Mutant | -8/Materials Resources | -11 -10 -9 -9 -9 -8 -8 ----------- Run | Yrd Mat Mat Min Exi Min Mat Matter Collected 1245 | 233 263 380 22 . 90 257 Remotely . | . . . . . . . Salvage Created 1986 | 12 375 1255 . . 47 297 Parts 126 | 4 26 78 . . 8 10 Haulers Intercepted 6 | . 1 4 . . . 1 Recyclers Shooed 4 | 1 . 2 1 . . . Parts Field Recycled . | . . . . . . . Retrieved Matter . | . . . . . . . Parts Self-Destructed . | . . . . . . . Prevented . | . . . . . . . Kills | -11 -10 -9 -9 -9 -8 -8 ------- Run | Yrd Mat Mat Min Exi Min Mat Combat Hostiles Destroyed 38 | . 10 18 . . 2 8 Melee 2 | . . . . . . 2 Guns 16 | . 6 7 . . 2 1 Cannons 10 | . 4 5 . . . 1 AOE 10 | . . 6 . . . 4 Classes Destroyed 13 | 1 7 4 . . . 1 Worker 12 | . 1 9 . . 2 . Builder 2 | . . 2 . . . . Tunneler 3 | 1 . 2 . . . . Hauler 6 | . 1 4 . . . 1 Recycler 4 | . 1 2 . . . 1 Mechanic 1 | . . 1 . . . . Operator 3 | . 1 1 . . . 1 Watcher 3 | . 2 1 . . . . Swarmer 9 | . 3 3 . . 2 1 Grunt 23 | . 7 11 . . . 5 Brawler 1 | . . 1 . . . . Duelist 1 | . . . . . . 1 Sentry 4 | . . 3 . . . 1 Best Kill Streak 10 | 1 10 6 . . 2 4 Combat Bots Only 4 | . 4 4 . . 2 3 Max Kills in Single Turn 4 | 1 4 3 . . 1 3 Gunslinging . | . . . . . . . Exploded 2 | . . 2 . . . 2 Melee 1 | . . . . . . 1 Uniques/NPCs Destroyed . | . . . . . . . Combat | -11 -10 -9 -9 -9 -8 -8 -------- Run | Yrd Mat Mat Min Exi Min Mat Hostile Shots Fired 326 | . 74 122 . . 24 106 Missed 77 | . 23 23 . . 7 24 Hits 249 | . 51 99 . . 17 82 Melee 6 | . . 6 . . . . Projectile 243 | . 51 93 . . 17 82 Critical Strikes 4 | . . 4 . . . . Damage Taken 3206 | . 670 1340 8 . 134 1054 Core 1024 | . 98 278 4 . 93 551 Absorbed by Shields . | . . . . . . . Redirected to Shielding 56 | . 45 11 . . . . Core Remaining (%) 55 | 100 60 . . . 6 . Volleys Fired 183 | 3 44 103 6 2 11 14 Largest 3 | 2 2 3 1 1 1 2 Hottest 176 | 40 120 176 56 24 24 57 Shots Fired 359 | 6 88 227 6 2 11 19 Gun 211 | 6 60 118 4 2 11 10 Cannon 128 | . 28 100 . . . . Launcher 16 | . . 9 2 . . 5 Special 4 | . . . . . . 4 Kinetic 114 | 6 76 6 3 2 11 10 Thermal 229 | . 12 212 1 . . 4 Explosive 16 | . . 9 2 . . 5 Electromagnetic . | . . . . . . . Robot Hit Streak 29 | 3 18 29 2 . 6 9 Robot Miss Streak 6 | 1 5 3 4 . 6 4 Penetration Max . | . . . . . . . Secondary Targets 1 | . . 1 . . . . Max Gunslinging Chain 1 | . . 1 . . . . Shots Hit Robots 198 | 4 52 111 1 . 9 21 Core Hits 100 | 2 19 49 . . 6 24 Critical Kills . | . . . . . . . Critical Parts Destroyed . | . . . . . . . Critical Strikes 4 | . . 3 . . . 1 Burn 3 | . . 3 . . . . Sever 1 | . . . . . . 1 Melee Attacks 13 | . . . . . . 13 Impact . | . . . . . . . Slashing 13 | . . . . . . 13 Piercing . | . . . . . . . Sneak Attacks 2 | . . . . . . 2 Combat Hostiles . | . . . . . . . Follow-up Attacks . | . . . . . . . Damage Inflicted 5554 | 42 1380 2670 64 . 158 1240 Guns 2069 | 42 509 1141 24 . 158 195 Cannons 1213 | . 259 954 . . . . Explosions 1896 | . 612 574 40 . . 670 Melee 333 | . . . . . . 333 Ramming 10 | . . 1 . . . 9 Kinetic 1128 | 42 663 46 24 . 158 195 Thermal 3092 | . 717 2049 . . . 326 Explosive 991 | . . 574 40 . . 377 Electromagnetic . | . . . . . . . Impact . | . . . . . . . Slashing 333 | . . . . . . 333 Piercing . | . . . . . . . Highest Corruption 1 | . 1 . . . . . Average Corruption 1 | . 1 . . . . . Corruption Purged . | . . . . . . . Corruption Blocked . | . . . . . . . Overload Shots . | . . . . . . . Overflow Damage 319 | . 206 20 15 . . 78 Projectiles 5 | . . 5 . . . . Explosions 275 | . 206 15 15 . . 39 Melee 39 | . . . . . . 39 Knockbacks 3 | . 3 . . . . . Impact . | . . . . . . . Kinetic 3 | . 3 . . . . . Secondary . | . . . . . . . Self-Inflicted Damage 311 | . 160 114 9 . . 28 Shots 7 | . 2 3 1 . . 1 Rammed 6 | . . 2 . . . 4 Targets Rammed 6 | . . 2 . . . 4 Kicked . | . . . . . . . Crushed . | . . . . . . . Highest Temperature 512 | . 90 512 2 . . 12 Average Temperature 126 | . 32 133 1 . . 7 Received Heat Transfer 984 | . 204 564 . . . 216 Effects 13 | . . 13 . . . . Shutdowns 1 | . . 1 . . . . Energy Bleed 5 | . . 5 . . . . Interference 5 | . . 5 . . . . Short Circuit 1 | . . 1 . . . . Damage (minor) 1 | . . 1 . . . . Siege Activations . | . . . . . . . Martial Activations . | . . . . . . . Shielding Activations . | . . . . . . . Robots Disrupted . | . . . . . . . Combat Hostiles . | . . . . . . . Robots Corrupted . | . . . . . . . Combat Hostiles . | . . . . . . . Parts Fried . | . . . . . . . Impact Corruptions . | . . . . . . . Robots Melted . | . . . . . . . Combat Hostiles . | . . . . . . . Parts Melted 7 | . . 6 . . . 1 Heat Transferred 5584 | . 672 4551 . . . 361 Parts Sabotaged . | . . . . . . . Parts Stolen . | . . . . . . . Parts Stripped . | . . . . . . . Power Chain Reactions . | . . . . . . . Alert | -11 -10 -9 -9 -9 -8 -8 ------- Run | Yrd Mat Mat Min Exi Min Mat Maximum Alert Level 1 | . 1 1 . . . . Low Security (%) 96 | 100 96 94 100 . 100 100 Level 1 3 | . 3 5 . . . . Level 2 . | . . . . . . . Level 3 . | . . . . . . . Level 4 . | . . . . . . . Level 5 . | . . . . . . . High Security . | . . . . . . . Max Security . | . . . . . . . Peak Influence 216 | 5 204 216 70 . 50 145 Initial 70 | . . 69 70 . . . Average 62 | 1 70 73 18 . 16 74 Influence Increases 1382 | 5 351 662 17 . 60 287 Destroy 0b10 Robot/C 760 | . 200 360 . . 40 160 Destroy 0b10 Robot/NC 170 | 5 30 110 . . 10 15 Destroy Leader 178 | . 36 90 . . 10 42 Successful Hack 7 | . 7 . . . . . Disable Machine 90 | . 45 15 . . . 30 Destroy Structure 162 | . 33 72 17 . . 40 Lose Combat Pursuer 15 | . . 15 . . . . Influence Decreases 1320 | 5 185 646 199 . 60 225 Entered New Map 209 | . . 97 112 . . . Time Decay 871 | 5 145 449 87 . 60 125 Lost Part 240 | . 40 100 . . . 100 Squads Dispatched 4 | . 2 2 . . . . Investigation 1 | . 1 . . . . . Extermination . | . . . . . . . Reinforcement 3 | . 1 2 . . . . Assault . | . . . . . . . Garrison . | . . . . . . . Intercept . | . . . . . . . Searches Triggered . | . . . . . . . Construction Impeded 1 | . . 1 . . . . Haulers Reinforced . | . . . . . . . Active Scanning Responses . | . . . . . . . Cargo Convoy Interrupts . | . . . . . . . Stealth | -11 -10 -9 -9 -9 -8 -8 --------- Run | Yrd Mat Mat Min Exi Min Mat Distress Signals 3 | . 2 1 . . . . Communications Jammed . | . . . . . . . Distress Signals . | . . . . . . . Times Spotted 64 | . 18 30 . . 3 13 Peak Tracking Total 8 | . 8 4 . . 3 4 Tactical Retreats 1 | . . 1 . . . . Traps | -11 -10 -9 -9 -9 -8 -8 ------- Run | Yrd Mat Mat Min Exi Min Mat Traps Triggered 2 | . 2 . . . . . Indirectly . | . . . . . . . Trap Hack Attempts . | . . . . . . . Triggered . | . . . . . . . Disarmed . | . . . . . . . Reprogrammed . | . . . . . . . Reused . | . . . . . . . Traps Extracted . | . . . . . . . Installed . | . . . . . . . Triggered . | . . . . . . . Machines | -11 -10 -9 -9 -9 -8 -8 ---------- Run | Yrd Mat Mat Min Exi Min Mat Machines Disabled 6 | . 3 1 . . . 2 Max in Single Turn 3 | . 3 1 . . . 2 Machines Repaired . | . . . . . . . Machines Dismantled . | . . . . . . . Machines Sabotaged . | . . . . . . . Overloaded Fab Kills . | . . . . . . . Hacking | -11 -10 -9 -9 -9 -8 -8 --------- Run | Yrd Mat Mat Min Exi Min Mat Machines Accessed 2 | . 1 . . 1 . . Terminals 1 | . 1 . . . . . Fabricators . | . . . . . . . Repair Stations . | . . . . . . . Recycling Units . | . . . . . . . Scanalyzers . | . . . . . . . Garrison Access . | . . . . . . . Total Hacks 25 | . 2 . . 23 . . Successful 24 | . 1 . . 23 . . Failed 1 | . 1 . . . . . Catastrophic 1 | . 1 . . . . . Database Lockouts . | . . . . . . . Manual 2 | . 2 . . . . . Terminals 2 | . 2 . . . . . Fabricators . | . . . . . . . Repair Stations . | . . . . . . . Recycling Units . | . . . . . . . Scanalyzers . | . . . . . . . Garrison Access . | . . . . . . . Terminal Hacks 24 | . 1 . . 23 . . Record 23 | . . . . 23 . . Part Schematic 1 | . 1 . . . . . Fabricator Hacks . | . . . . . . . Repair Station Hacks . | . . . . . . . Recycling Unit Hacks . | . . . . . . . Scanalyzer . | . . . . . . . Garrison Access Hacks . | . . . . . . . Unauthorized Hacks . | . . . . . . . Terminals . | . . . . . . . Fabricators . | . . . . . . . Repair Stations . | . . . . . . . Recycling Units . | . . . . . . . Scanalyzers . | . . . . . . . Garrison Access . | . . . . . . . Data Cores Recovered 1 | . . . . . . 1 Used . | . . . . . . . Hacking Detections 1 | . 1 . . . . . Full Trace Events 1 | . 1 . . . . . Feedback Events . | . . . . . . . Feedback Blocked . | . . . . . . . Robot Schematics Acquired . | . . . . . . . Robots Built . | . . . . . . . Authchips . | . . . . . . . Time . | . . . . . . . Total Robot Build Rating . | . . . . . . . Part Schematics Acquired 1 | . 1 . . . . . Parts Built . | . . . . . . . Authchips . | . . . . . . . Time . | . . . . . . . Total Part Build Rating . | . . . . . . . Parts Repaired . | . . . . . . . Time . | . . . . . . . Parts Recycled . | . . . . . . . Recycled Matter . | . . . . . . . Retrieved Matter . | . . . . . . . Retrieved Components . | . . . . . . . Parts Scanalyzed . | . . . . . . . Part Schematics Acquired . | . . . . . . . Parts Damaged . | . . . . . . . Bothacking | -11 -10 -9 -9 -9 -8 -8 ------------ Run | Yrd Mat Mat Min Exi Min Mat Used RIF Installer . | . . . . . . . Robots Hacked . | . . . . . . . Non-combat . | . . . . . . . Combat . | . . . . . . . Robot Hacks Applied . | . . . . . . . Relay Couplers Released . | . . . . . . . Fabnet Peak Effective % . | . . . . . . . Robots Rewired . | . . . . . . . Allies Hacked . | . . . . . . . Hacks Repelled . | . . . . . . . Allies | -11 -10 -9 -9 -9 -8 -8 -------- Run | Yrd Mat Mat Min Exi Min Mat Total Allies . | . . . . . . . Largest Group . | . . . . . . . Highest-Rated Group . | . . . . . . . Highest-Rated Ally . | . . . . . . . Total Orders . | . . . . . . . Ally Attacks . | . . . . . . . Total Damage . | . . . . . . . Kills . | . . . . . . . Allies Corrupted . | . . . . . . . Allies Melted . | . . . . . . . Intel | -11 -10 -9 -9 -9 -8 -8 ------- Run | Yrd Mat Mat Min Exi Min Mat Active Infowar (turns) . | . . . . . . . Robot Analysis Total . | . . . . . . . Derelict Logs Recovered . | . . . . . . . Drone Launches . | . . . . . . . Drone Recoveries . | . . . . . . . Exploration | -11 -10 -9 -9 -9 -8 -8 ------------- Run | Yrd Mat Mat Min Exi Min Mat Turns Passed 3045 | 70 414 1718 321 64 153 305 Spaces Moved 1518 | 40 169 500 187 150 298 174 Core 277 | 8 53 172 . . . 44 Treads 449 | 32 116 254 . . . 47 Legs 9 | . . . . . . 9 Wheels 19 | . . 19 . . . . Hover . | . . . . . . . Flight 764 | . . 55 187 150 298 74 Fastest Speed 40 | 50 50 95 40 40 40 50 Average Speed 150 | 138 155 257 157 40 42 117 Slowest Speed 900 | 160 160 900 670 40 110 180 Overloaded Moves . | . . . . . . . Propulsion Burnouts . | . . . . . . . Robots Hopped . | . . . . . . . Potential Cave-ins . | . . . . . . . Cave-ins Triggered . | . . . . . . . Exploration Rate (%) 35 | 4 37 26 45 53 66 16 Regions Visited 6 Branch Regions 3 Pre-discovered Areas 1 | . . . . 1 . . Known Exits Taken . | . . . . . . . Unknown Exits Taken 6 | 1 1 1 1 1 1 . Scrap Searched 2 | . . . 1 . 1 . Spaces Dug . | . . . . . . . Terrain Destroyed 174 | . 33 78 22 . . 41 Melee . | . . . . . . . Projectile . | . . . . . . . AOE 174 | . 33 78 22 . . 41 Terrain Rammed . | . . . . . . . Walls Destroyed . | . . . . . . . Machines Disabled . | . . . . . . . Actions | -11 -10 -9 -9 -9 -8 -8 --------- Run | Yrd Mat Mat Min Exi Min Mat Total 1923 | 50 232 740 208 151 312 230 Wait 105 | . . 88 10 . 3 4 Move 1512 | 39 168 499 186 149 297 174 Hop . | . . . . . . . Pick Up 40 | 4 11 14 2 . . 9 Fast Attach 12 | . 1 9 . . 1 1 Attach 32 | 4 5 13 . . . 10 Detach 1 | . . . 1 . . . Swap 6 | . 2 3 1 . . . Drop 13 | . 1 9 2 . . 1 Fire 183 | 3 44 103 6 2 11 14 Melee 13 | . . . . . . 13 Ram 1 | . . . . . . 1 Kick . | . . . . . . . Crush 5 | . . 2 . . . 3 Escape Stasis . | . . . . . . . Rewire . | . . . . . . . Trap . | . . . . . . . Miscellaneous . | . . . . . . . Route ------- -11/Scrapyard -10/Materials -9/Materials -9/Mines -9/Exiles -8/Mines -8/Materials History --------- Turn | Location | Event 21 | -11/Scrapyard | Discovered new exit (range 15) 71 | -11/Scrapyard | Entered Materials 315 | -10/Materials | Build established: Mutant 421 | -10/Materials | Lost 4 parts (2n2w) 461 | -10/Materials | Discovered new exit (range 15) 485 | -10/Materials | Entered another Materials area 485 | -9/Materials | Evolved 2 slots: Utility x1, Weapon x1 1045 | -9/Materials | Lost 5 parts (1p3u1w) 1624 | -9/Materials | Core integrity fell below 50% 2094 | -9/Materials | Discovered new exit (range 16) 2203 | -9/Materials | Entered Mines 2254 | -9/Mines | Met a Derelict bent on vengeance 2497 | -9/Mines | A weapon hastily lodged in a ceiling crevice suddenly fell to the ground 2522 | -9/Mines | Deemed a non-threat by the Exiles lab entrance 2522 | -9/Mines | Discovered new exit (range 5) 2524 | -9/Mines | Entered Exiles 2535 | -9/Exiles | Met 8R-AWN 2541 | -9/Exiles | Met EX-HEX 2556 | -9/Exiles | Met EX-BIN 2561 | -9/Exiles | Met EX-DEC 2563 | -9/Exiles | Learned location of Zion (-7) 2581 | -9/Exiles | Discovered new exit (range 11) 2588 | -9/Exiles | Entered Mines 2613 | -8/Mines | Core integrity fell below 20% 2721 | -8/Mines | Discovered new exit (range 13) 2741 | -8/Mines | Entered Materials 2741 | -8/Materials | Evolved 2 slots: Propulsion x1, Utility x1 2902 | -8/Materials | Core integrity fell below 50% 2924 | -8/Materials | Lost 5 parts (1p1n1u2w) 3020 | -8/Materials | Core integrity fell below 20% 3046 | -8/Materials | Destroyed by S-10 Pest with Light Assault Rifle Last Messages --------------- Acquired 19 matter. A-02 Transporter destroyed. Acquired 56 matter. Acquired Imp. Signal Interpreter. S-10 Pest destroyed. Acquired 14 matter. K-01 Serf collects debris. Katana destroyed. Slammed into S-10 Pest. K-01 Serf collects debris. Lgt. Treads destroyed. Imp. Ion Engine destroyed. K-01 Serf collects debris. Targeting Computer destroyed. Acquired Hacking Suite. Slammed into S-10 Pest. S-10 Pest destroyed. Plasma Cutter destroyed. Acquired 17 matter. Acquired Flight Unit. Map ----- +----------------------------------------------------+ | ????????????????????????????????# #? #??? | | ????????????????????????????????# #?? #??? | | ????????????????????????????????# #??#######??? | | ????????????????????????????????# #???????????? | | ????????????????????????????????# #???????????? | | ????????????????????????????###?# #???????????? | | ????????????????????######### ### #???????????? | | ???????????????????? + # #???????????? | | ??????????????????????# "" # %#???????????? | | ??????????????????????# "T # #???????????? | | ??????????????????????# " ! += #???????????? | | ??????????????????????# ! # ##??????????? | | ??????????????????????# # ##??????????? | | ??????????????????????# # ##??????????? | | ??????????????????????# # ##########??? | | ??????????????????????#####+##### # #??? | | ?????????????????????????## # # # "T" #??? | | ?????????????????????????## #####!==# #??? | | ?????????????????????????# m= = # """ #??? | | ?????????????????????""" + = / """"" #??? | | ?????????????????????"" # # """""????? | | ?????????????????????????# #### # """"?????? | | ?????????????????????????# #### # """?????? | | ??????????????????#+#????# #### # ???? | | ??????????????????# ######[ #?## #########???? | | ??????? ######## @ #?## #???????????? | | ??????# a = #??# #???????????? | | ????????????####### s #??# #???????????? | | ???????????######?# s########??# #???????????? | | ???????????#! ! # #?????????# #???????????? | | ???????????# # #?????????# #???????????? | | ???????????# """ + #????????? #???????????? | | ???????????# """ # #?????????# #???????????? | | ???????????# """ # #?????????? #???????????? | | ???????????# + #?????????? #???????????? | | ???????????#########/#####??????? ????????????? | | ????????????????# #??????????????????????? | | ????????????????# """" #??????????????????????? | | ????????????????# """" #??????????????????????? | | ????????????????# ! """" #??????????????????????? | | ????????????????# #??????????????????????? | | ????????????????# """" #??????????????????????? | | ????????????????# """" #??????????????????????? | | ????????????????# """" #??????????????????????? | | ????????????????# ????????????????????????? | | ????????????????#######?????????????????????????? | | ????????????????????????????????????????????????? | | ????????????????????????????????????????????????? | | ????????????????????????????????????????????????? | | ????????????????????????????????????????????????? | +----------------------------------------------------+ Best States ------------- Heat Dissipation 48 Energy Generation 14 Energy Capacity 265 Matter Stores 300 Matter Capacity 300 Sight Range 16 Terrain Scan Density 10 Propulsion Shielding 33 Evasion (%) 62 Targeting Accuracy 5 Recoil Reduction 2 Particle Charging 15 Offensive Hacking 20 Item Schematics ----------------- Hcp. Matter Pod | -10/Materials | Hacked Robot Schematics ------------------ None Fabricated ------------ Nothing Repaired ---------- Nothing Alien Tech Used ----------------- None Achievements -------------- None Challenges ------------ None Game ------ Seed PiercingBoreStabilizer Manual? 0 Play Time 00:19:32 Cumulative 134.5 hours Start 2025.09.12 @ 15:41:40 End 2025.09.13 @ 08:57:27 Sessions 1 Manual Loads 0 Difficulty Rogue Special Mode None Game No. 461 Rogue 461 Adventurer 0 Explorer 0 Win Type - Total 0 Types 0/0/0/0/0/0/0/0/0/0 Lore% 51 Gallery% 48 Achievement% 35 Wizard Run 0 Options --------- Layout 2 ASCII 0 Keyboard 0 Movement Mouse Keybinds 0 Fullscreen 1 Font 24/Smallcaps Map View 50x44 Zoom Use 0% Tactical HUD 0 Map Filters NONE Filters NONE Steam 1 RUN: f08714c2-406a-4161-a876-bfc542623549